{"text_format":"3","workbook":"xlsx","n_sheets":2,"sheets":["Utgifter","Kategori"],"not_rendered":{"defined_names":5},"read":"whole","date_system":"1900"}

{"sheet":"Utgifter","index":0,"n_rows":25,"n_cols":7,"rows_kept":25,"merged":[[0,1,0,5],[1,1,1,5]]}
[null,"UTGIFTSBUDSJETT",{"$nulls":4},{"$f":"TODAY()","v":"2022-01-17"}]
[null,"Firmanavn"]
[null,"Utgift","Kategori","Budsjett","Faktisk","Forskjell (Kr)","Forskjell (%)"]
[null,"Annonsering","Drift",null,null,{"$f":"IFERROR(SUM(Utgifter[[#This Row],[Budsjett]]-Utgifter[[#This Row],[Faktisk]]), \"\")","v":0},{"$f":"IFERROR(SUM(Utgifter[[#This Row],[Forskjell (Kr)]]/Utgifter[[#This Row],[Budsjett]]),\"\")","v":""}]
[null,"Gjeld","Drift",null,null,{"$f":"IFERROR(SUM(Utgifter[[#This Row],[Budsjett]]-Utgifter[[#This Row],[Faktisk]]), \"\")","v":0},{"$f":"IFERROR(SUM(Utgifter[[#This Row],[Forskjell (Kr)]]/Utgifter[[#This Row],[Budsjett]]),\"\")","v":""}]
[null,"Aktiva","Drift",null,null,{"$f":"IFERROR(SUM(Utgifter[[#This Row],[Budsjett]]-Utgifter[[#This Row],[Faktisk]]), \"\")","v":0},{"$f":"IFERROR(SUM(Utgifter[[#This Row],[Forskjell (Kr)]]/Utgifter[[#This Row],[Budsjett]]),\"\")","v":""}]
[null,"Utstyr","Drift",null,null,{"$f":"IFERROR(SUM(Utgifter[[#This Row],[Budsjett]]-Utgifter[[#This Row],[Faktisk]]), \"\")","v":0},{"$f":"IFERROR(SUM(Utgifter[[#This Row],[Forskjell (Kr)]]/Utgifter[[#This Row],[Budsjett]]),\"\")","v":""}]
[null,"Porto","Drift",null,null,{"$f":"IFERROR(SUM(Utgifter[[#This Row],[Budsjett]]-Utgifter[[#This Row],[Faktisk]]), \"\")","v":0},{"$f":"IFERROR(SUM(Utgifter[[#This Row],[Forskjell (Kr)]]/Utgifter[[#This Row],[Budsjett]]),\"\")","v":""}]
[null,"Leie- eller lånekostnader","Drift",null,null,{"$f":"IFERROR(SUM(Utgifter[[#This Row],[Budsjett]]-Utgifter[[#This Row],[Faktisk]]), \"\")","v":0},{"$f":"IFERROR(SUM(Utgifter[[#This Row],[Forskjell (Kr)]]/Utgifter[[#This Row],[Budsjett]]),\"\")","v":""}]
[null,"Salgsutgifter","Drift",null,null,{"$f":"IFERROR(SUM(Utgifter[[#This Row],[Budsjett]]-Utgifter[[#This Row],[Faktisk]]), \"\")","v":0},{"$f":"IFERROR(SUM(Utgifter[[#This Row],[Forskjell (Kr)]]/Utgifter[[#This Row],[Budsjett]]),\"\")","v":""}]
[null,"Skatter","Drift",null,null,{"$f":"IFERROR(SUM(Utgifter[[#This Row],[Budsjett]]-Utgifter[[#This Row],[Faktisk]]), \"\")","v":0},{"$f":"IFERROR(SUM(Utgifter[[#This Row],[Forskjell (Kr)]]/Utgifter[[#This Row],[Budsjett]]),\"\")","v":""}]
[null,"Offentlige tjenester","Drift",null,null,{"$f":"IFERROR(SUM(Utgifter[[#This Row],[Budsjett]]-Utgifter[[#This Row],[Faktisk]]), \"\")","v":0},{"$f":"IFERROR(SUM(Utgifter[[#This Row],[Forskjell (Kr)]]/Utgifter[[#This Row],[Budsjett]]),\"\")","v":""}]
[null,"Andre","Drift",null,null,{"$f":"IFERROR(SUM(Utgifter[[#This Row],[Budsjett]]-Utgifter[[#This Row],[Faktisk]]), \"\")","v":0},{"$f":"IFERROR(SUM(Utgifter[[#This Row],[Forskjell (Kr)]]/Utgifter[[#This Row],[Budsjett]]),\"\")","v":""}]
[null,"Forsikring","Drift",null,null,{"$f":"IFERROR(SUM(Utgifter[[#This Row],[Budsjett]]-Utgifter[[#This Row],[Faktisk]]), \"\")","v":0},{"$f":"IFERROR(SUM(Utgifter[[#This Row],[Forskjell (Kr)]]/Utgifter[[#This Row],[Budsjett]]),\"\")","v":""}]
[null,"Rente","Drift",null,null,{"$f":"IFERROR(SUM(Utgifter[[#This Row],[Budsjett]]-Utgifter[[#This Row],[Faktisk]]), \"\")","v":0},{"$f":"IFERROR(SUM(Utgifter[[#This Row],[Forskjell (Kr)]]/Utgifter[[#This Row],[Budsjett]]),\"\")","v":""}]
[null,"Telefon","Drift",null,null,{"$f":"IFERROR(SUM(Utgifter[[#This Row],[Budsjett]]-Utgifter[[#This Row],[Faktisk]]), \"\")","v":0},{"$f":"IFERROR(SUM(Utgifter[[#This Row],[Forskjell (Kr)]]/Utgifter[[#This Row],[Budsjett]]),\"\")","v":""}]
[null,"Vedlikehold og reparasjoner","Drift",null,null,{"$f":"IFERROR(SUM(Utgifter[[#This Row],[Budsjett]]-Utgifter[[#This Row],[Faktisk]]), \"\")","v":0},{"$f":"IFERROR(SUM(Utgifter[[#This Row],[Forskjell (Kr)]]/Utgifter[[#This Row],[Budsjett]]),\"\")","v":""}]
[null,"Juridiske salærer","Drift",null,null,{"$f":"IFERROR(SUM(Utgifter[[#This Row],[Budsjett]]-Utgifter[[#This Row],[Faktisk]]), \"\")","v":0},{"$f":"IFERROR(SUM(Utgifter[[#This Row],[Forskjell (Kr)]]/Utgifter[[#This Row],[Budsjett]]),\"\")","v":""}]
[null,"Avskrivning","Drift",null,null,{"$f":"IFERROR(SUM(Utgifter[[#This Row],[Budsjett]]-Utgifter[[#This Row],[Faktisk]]), \"\")","v":0},{"$f":"IFERROR(SUM(Utgifter[[#This Row],[Forskjell (Kr)]]/Utgifter[[#This Row],[Budsjett]]),\"\")","v":""}]
[null,"Frakt","Drift",null,null,{"$f":"IFERROR(SUM(Utgifter[[#This Row],[Budsjett]]-Utgifter[[#This Row],[Faktisk]]), \"\")","v":0},{"$f":"IFERROR(SUM(Utgifter[[#This Row],[Forskjell (Kr)]]/Utgifter[[#This Row],[Budsjett]]),\"\")","v":""}]
[null,"Lagring","Drift",null,null,{"$f":"IFERROR(SUM(Utgifter[[#This Row],[Budsjett]]-Utgifter[[#This Row],[Faktisk]]), \"\")","v":0},{"$f":"IFERROR(SUM(Utgifter[[#This Row],[Forskjell (Kr)]]/Utgifter[[#This Row],[Budsjett]]),\"\")","v":""}]
[null,"Butikk","Personlig",null,null,{"$f":"IFERROR(SUM(Utgifter[[#This Row],[Budsjett]]-Utgifter[[#This Row],[Faktisk]]), \"\")","v":0},{"$f":"IFERROR(SUM(Utgifter[[#This Row],[Forskjell (Kr)]]/Utgifter[[#This Row],[Budsjett]]),\"\")","v":""}]
[null,"Selgere","Personlig",null,null,{"$f":"IFERROR(SUM(Utgifter[[#This Row],[Budsjett]]-Utgifter[[#This Row],[Faktisk]]), \"\")","v":0},{"$f":"IFERROR(SUM(Utgifter[[#This Row],[Forskjell (Kr)]]/Utgifter[[#This Row],[Budsjett]]),\"\")","v":""}]
[null,"Andre","Personlig",null,null,{"$f":"IFERROR(SUM(Utgifter[[#This Row],[Budsjett]]-Utgifter[[#This Row],[Faktisk]]), \"\")","v":0},{"$f":"IFERROR(SUM(Utgifter[[#This Row],[Forskjell (Kr)]]/Utgifter[[#This Row],[Budsjett]]),\"\")","v":""}]
[null,"Totale utgifter",null,{"$f":"IFERROR(SUM(Utgifter[Budsjett]), \"\")","v":0},{"$f":"IFERROR(SUM(Utgifter[Faktisk]), \"\")","v":0},{"$f":"IFERROR(SUM(Utgifter[Forskjell (Kr)]), \"\")","v":0},{"$f":"IFERROR(SUM(Utgifter[[#Totals],[Forskjell (Kr)]]/Utgifter[[#Totals],[Budsjett]]),\"\")","v":""}]

{"sheet":"Kategori","index":1,"n_rows":4,"n_cols":2,"rows_kept":4}
[null,"Kategorioppslag"]
[null,"Kategori"]
[null,"Drift"]
[null,"Personlig"]